fUSD/lending_fUSD_20250809
["ID","MTS","AMOUNT","RATE_DAILY","PERIOD"]
[378182426,1754771439260,-500.0,0.00019968,2]
[378182429,1754771439270,-32401.39,0.0001998,2]
[378182431,1754771439280,-37440.36,0.0001998,2]
[378182432,1754771439290,-150.0,0.0002,2]
[378182435,1754771439300,-298.62,0.0002,7]
[378182436,1754771439309,-4000.0,0.0002,4]
[378182439,1754771439319,-4835.02578598,0.00020011,2]
[378182441,1754771439331,-1444.40395297,0.00020037,2]
[378182443,1754771439340,-2410.52335219,0.00020037,2]
[378182445,1754771439349,-239.35,0.00020055,2]
[378182447,1754771439359,-5013.92174006,0.00020066,2]
[378182449,1754771439368,-168.70994976,0.000201,2]
[378182451,1754771439377,-171.12,0.00020115,2]
[378182453,1754771439387,-5199.43684444,0.00020121,2]
[378182455,1754771439396,-9999.99,0.00020145,2]
[378182457,1754771439406,-3598.21,0.00020145,2]
[378182459,1754771439415,-999.99,0.00020145,2]
[378182461,1754771439424,-8606.42,0.00020145,2]
[378182463,1754771439434,-299.99,0.00020145,7]
[378182465,1754771439443,-150.99,0.00020145,2]
[378182467,1754771439454,-9999.99,0.00020145,2]
[378182469,1754771439464,-5391.81600769,0.00020176,2]
[378182471,1754771439473,-180.7,0.00020187,2]
[378182473,1754771439482,-171.8,0.00020192,2]
[378182475,1754771439491,-5591.31319997,0.00020231,2]
[378182477,1754771439501,-1444.40395297,0.00020253,2]
[378182479,1754771439510,-2410.52335219,0.00020253,2]
[378182481,1754771439520,-5798.19178837,0.00020286,2]
[378182483,1754771439529,-1000.0,0.000203,7]
[378182485,1754771439538,-6012.72488454,0.00020341,2]
[378182487,1754771439548,-247.58225773,0.0002037,2]
[378182489,1754771439557,-6235.19570527,0.00020396,2]
[378182491,1754771439566,-1300.0,0.000204,7]
[378182493,1754771439575,-5451.95160405,0.00020451,2]
[378182495,1754771439584,-1444.40395297,0.00020468,2]
[378182497,1754771439593,-2410.52335219,0.00020469,2]
[378182499,1754771439602,-1700.0,0.000205,7]
[378182501,1754771439611,-168.70994976,0.000205,2]
[378182503,1754771439621,-300.0,0.000206,7]
[378182505,1754771439630,-892.97,0.00020644,2]
[378182507,1754771439639,-1444.40395297,0.00020684,2]
[378182509,1754771439648,-2410.52335219,0.00020684,2]
[378182511,1754771439658,-1784.0897912,0.00020685,2]
[378182513,1754771439667,-300.0,0.000207,7]
[378182515,1754771439676,-301.25,0.00020708,2]
[378182517,1754771439686,-498.64,0.00020767,2]
[378182519,1754771439695,-2239.69076,0.0002079,2]
[378182522,1754771439705,-300.0,0.000208,7]
[378182525,1754771439714,-200.0,0.00020832,2]
[378182528,1754771439724,-14632.6709,0.00020898,2]
[378182531,1754771439733,-5000.0,0.000209,2]
[378182534,1754771439743,-5800.0,0.000209,2]
[378182537,1754771439753,-1882.309,0.000209,2]
[378182540,1754771439762,-2410.52335219,0.000209,2]
[378182543,1754771439771,-1444.40395297,0.000209,2]
[378182546,1754771439781,-300.0,0.000209,7]
[378182549,1754771439790,-168.70994976,0.000209,2]
[378182552,1754771439800,-1988.61364709,0.00020943,2]
[378182555,1754771439809,-1901.74684391,0.00020945,2]
[378182557,1754771439818,-1988.61364709,0.0002095,2]
[378182559,1754771439827,-1726.20996288,0.00020952,2]
[378182561,1754771439836,-1988.61364709,0.00020952,2]
[378182563,1754771439845,-1726.20996288,0.00020957,2]
[378182565,1754771439855,-1726.20996288,0.00020964,2]
[378182567,1754771439865,-1726.20996288,0.0002097,2]
[378182569,1754771439874,-1901.74684391,0.00020972,2]
[378182571,1754771439883,-500.0,0.00020973,2]
[378182574,1754771439892,-499.74582972,0.00020973,2]
[378182577,1754771439902,-500.0,0.00020973,2]
[378182581,1754771439912,-500.0,0.00020973,2]
[378182584,1754771439922,-500.0,0.00020973,2]
[378182587,1754771439931,-500.0,0.00020973,2]
[378182589,1754771439940,-500.0,0.00020973,2]
[378182592,1754771439949,-500.0,0.00020973,2]
[378182595,1754771439959,-500.84911981,0.00020973,2]
[378182598,1754771439968,-500.0,0.00020973,2]
[378182600,1754771439977,-500.0,0.00020973,2]
[378182602,1754771439986,-500.0,0.00020973,2]
[378182604,1754771439995,-500.0,0.00020973,2]
[378182606,1754771440005,-500.0,0.00020973,2]
[378182608,1754771440014,-500.85260033,0.00020973,2]
[378182610,1754771440024,-500.0,0.00020973,2]
[378182612,1754771440033,-500.0,0.00020973,2]
[378182614,1754771440042,-500.0,0.00020973,2]
[378182616,1754771440052,-500.0,0.00020973,2]
[378182618,1754771440061,-500.0,0.00020973,2]
[378182620,1754771440071,-500.0,0.00020973,2]
[378182622,1754771440080,-500.53828384,0.00020973,2]
[378182624,1754771440090,-500.0,0.00020973,2]
[378182626,1754771440099,-500.0,0.00020973,2]
[378182628,1754771440109,-501.03670081,0.00020973,2]
[378182630,1754771440118,-500.0,0.00020973,2]
[378182632,1754771440127,-505.57386471,0.00020973,2]
[378182634,1754771440136,-501.71915722,0.00020973,2]
[378182636,1754771440146,-500.37953839,0.00020973,2]
[378182638,1754771440155,-500.0,0.00020973,2]
[378182640,1754771440164,-1901.74684391,0.00020973,2]
[378182642,1754771440173,-172.91,0.00020974,2]
[378182644,1754771440182,-1988.61364709,0.00020976,2]
[378182646,1754771440191,-795.91,0.00020976,2]
[378182648,1754771440201,-1988.61364709,0.00020976,2]
[378182650,1754771440210,-168.0,0.00020979,2]
[378182652,1754771440220,-150.0,0.00020979,2]
[378182654,1754771440229,-226.0,0.0002098,2]
[378182656,1754771440238,-250.0,0.0002098,2]
[378182658,1754771440248,-324.3706218,0.0002098,2]
[378182659,1754771440260,-150.0,0.0002098,2]
[378182661,1754771440269,-250.0,0.0002098,2]
[378182663,1754771440279,-150.0,0.0002098,2]
[378182666,1754771440288,-250.0,0.0002098,2]
[378182668,1754771440303,-500.0,0.0002098,2]
[378182671,1754771440320,-413.41353759,0.00020981,2]
[378182673,1754771440335,-502.45645337,0.00020983,2]
[378182676,1754771440349,-591.49936916,0.00020984,2]
[378182678,1754771440362,-680.54228495,0.00020985,2]
[378182681,1754771440377,-1901.74684391,0.00020986,2]
[378182683,1754771440392,-769.58520074,0.00020986,2]
[378182686,1754771440404,-598.0,0.00020988,2]
[378182688,1754771440418,-1295.0,0.00020988,2]
[378182691,1754771440433,-2026.0,0.00020988,2]
[378182693,1754771440447,-565.0,0.00020988,2]
[378182696,1754771440461,-959.0,0.00020988,2]
[378182698,1754771440476,-1653.0,0.00020988,2]
[378182701,1754771440491,-1180.195,0.00020988,2]
[378182703,1754771440504,-3234.293,0.00020988,2]
[378182706,1754771440519,-893.0,0.00020988,2]
[378182708,1754771440533,-956.0,0.00020988,2]
[378182711,1754771440547,-810.0,0.00020988,2]
[378182713,1754771440560,-3365.0,0.00020988,2]
[378182716,1754771440574,-1253.0,0.00020988,2]
[378182719,1754771440590,-858.62811653,0.00020988,2]
[378182721,1754771440604,-947.67103231,0.00020989,2]
[378182723,1754771440617,-1036.71394811,0.0002099,2]
[378182726,1754771440629,-1901.74684391,0.00020996,2]
[378182728,1754771440641,-400.0,0.00020997,2]
[378182731,1754771440658,-500.0,0.00020997,2]
[378182733,1754771440669,-4762.0291132,0.00020998,2]
[378182735,1754771440680,-100608.9768082,0.00020998,2]
[378182737,1754771440693,-997.8100324,0.00020998,2]
[378182740,1754771440708,-12689.5745686,0.00020998,2]
[378182742,1754771440719,-229.9199357,0.00020998,2]
[378182745,1754771440730,-1726.20996288,0.00020998,2]
[378182747,1754771440742,-1000.0,0.00020999,2]
[378182749,1754771440755,-1000.0,0.00020999,2]
[378182751,1754771440768,-1000.0,0.00020999,2]
[378182754,1754771440780,-1000.0,0.00020999,2]
[378182756,1754771440792,-1000.0,0.00020999,2]
[378182759,1754771440811,-1000.0,0.00020999,2]
[378182762,1754771440824,-1000.0,0.00020999,2]
[378182764,1754771440836,-1000.0,0.00020999,2]
[378182766,1754771440848,-5951.86758549,0.00021,2]
[378182769,1754771440860,-21894.35060047,0.00021,2]
[378182771,1754771440872,-2094446.58840822,0.00021,2]
[378182809,1754771441347,-188.27878981,0.000198,3]
[378182811,1754771441363,-699.72121019,0.000198,3]
[378182814,1754771441374,-888.0,0.00020896,3]
[378182816,1754771441386,-115.30961216,0.00021,2]
[378182819,1754771441401,-728.4488013,0.00021,2]
[378182821,1754771441415,-730986.14644782,0.00021,2]
[378183001,1754771443121,-296929.7843919,0.00021,2]
[378183003,1754771443136,-27024.89999993,0.00021,2]
[378183006,1754771443151,-2082581.33898215,0.00021,2]
[378183010,1754771443178,-150436.58010495,0.00021,2]
[378183293,1754771446230,-2141.1738,0.00021,2]
[378183295,1754771446243,-94067.87554015,0.00021,2]
[378183298,1754771446276,-870.70911823,0.00021,2]
[378184146,1754771921356,299.99,0.0001998,7]
[378184150,1754772006513,152.0,0.0002142,120]
[378184151,1754772022190,283.42303,0.0002,10]
[378184152,1754772022440,283.42303,0.0002,10]
[378184153,1754772022706,283.42303,0.0002,10]
[378184154,1754772022963,283.42303,0.0002,10]
[378184155,1754772023579,283.42307,0.0002,10]
[378184160,1754772305289,152.0,0.0002142,120]
[378184163,1754772377340,-402.3962309,0.00018161,2]
[378184164,1754772380380,-110.6037691,0.00018161,2]
[378184165,1754772382200,162.63,0.00013699,2]
[378184170,1754772556399,517.0,0.00018161,2]
[378184172,1754772580143,521.34,0.0002,7]
[378184175,1754772603792,152.0,0.00021419,120]
[378184193,1754772637578,-150.0,0.000189,2]
[378184195,1754772637588,-500.0,0.00019128,4]
[378184197,1754772637597,-1200.0,0.00019177,2]
[378184199,1754772637606,-151.0,0.00019178,2]
[378184201,1754772637616,-825.31,0.00019178,2]
[378184203,1754772637625,-201.28,0.00019178,2]
[378184205,1754772637634,-305.72,0.00019178,2]
[378184207,1754772637643,-300.85,0.00019178,2]
[378184209,1754772637654,-304.72,0.00019178,2]
[378184211,1754772637663,-304.13,0.00019178,2]
[378184213,1754772637672,-300.0,0.0001922,2]
[378184215,1754772637682,-160.0,0.0001922,2]
[378184217,1754772637691,-500.0,0.00019221,4]
[378184219,1754772637701,-1000.0,0.00019329,2]
[378184221,1754772637710,-2057.19,0.00019491,2]
[378184223,1754772637719,-174.54,0.00019493,2]
[378184226,1754772637729,-165.52,0.00019516,2]
[378184228,1754772637738,-649.0,0.00019648,2]
[378184229,1754772637747,-6392.82,0.00019649,2]
[378184231,1754772637756,-193.06,0.00019678,2]
[378184233,1754772637765,-200.0,0.0001973,2]
[378184235,1754772637774,-12624.79,0.00019733,2]
[378184237,1754772637783,-292.41,0.00019762,2]
[378184239,1754772637792,-194.39,0.00019852,2]
[378184241,1754772637802,-239.84119403,0.00019949,2]
[378184244,1754772637812,-4662.51281194,0.00019949,2]
[378184246,1754772637822,-881.56254359,0.0001995,2]
[378184248,1754772637831,-190.73636256,0.0001995,2]
[378184250,1754772637840,-850.0,0.00019979,2]
[378184251,1754772637850,-2230.76,0.0001998,2]
[378184254,1754772637858,-4835.02578598,0.00020004,2]
[378184256,1754772637867,-167.6,0.00020037,2]
[378184258,1754772637878,-5013.92174006,0.00020059,2]
[378184260,1754772637887,-513.0,0.00020063,4]
[378184262,1754772637896,-150.0,0.0002008,2]
[378184264,1754772637905,-2815.08517591,0.00020097,2]
[378184266,1754772637914,-160.0,0.00020098,2]
[378184268,1754772637924,-600.0,0.00020098,2]
[378184270,1754772637933,-151.0,0.00020098,2]
[378184272,1754772637943,-151.0,0.00020098,2]
[378184274,1754772637951,-151.0,0.00020098,2]
[378184276,1754772637961,-534.05320587,0.00020098,2]
[378184278,1754772637970,-151.0,0.00020098,2]
[378184280,1754772637979,-151.0,0.00020098,2]
[378184282,1754772637988,-151.0,0.00020098,2]
[378184284,1754772637997,-151.0,0.00020098,2]
[378184286,1754772638006,-500.0,0.00020098,2]
[378184288,1754772638020,-151.0,0.00020098,2]
[378184290,1754772638029,-151.0,0.00020098,2]
[378184293,1754772638038,-151.0,0.00020098,2]
[378184295,1754772638047,-151.0,0.00020098,2]
[378184297,1754772638057,-151.0,0.00020098,2]
[378184299,1754772638066,-151.0,0.00020098,2]
[378184301,1754772638075,-151.0,0.00020098,2]
[378184303,1754772638085,-151.0,0.00020098,2]
[378184305,1754772638095,-151.0,0.00020098,2]
[378184307,1754772638105,-500.0,0.00020098,2]
[378184309,1754772638115,-500.0,0.00020098,2]
[378184311,1754772638124,-500.0,0.00020098,2]
[378184313,1754772638134,-500.0,0.00020098,2]
[378184315,1754772638143,-500.0,0.00020098,2]
[378184317,1754772638153,-500.0,0.00020098,2]
[378184319,1754772638162,-500.0,0.00020098,2]
[378184321,1754772638171,-151.0,0.00020098,2]
[378184323,1754772638180,-500.0,0.00020098,2]
[378184325,1754772638190,-500.0,0.00020098,2]
[378184327,1754772638199,-151.0,0.00020098,2]
[378184329,1754772638208,-500.0,0.00020098,2]
[378184331,1754772638217,-359.76179104,0.00020098,2]
[378184333,1754772638226,-500.0,0.00020098,2]
[378184335,1754772638235,-204.0,0.00020098,2]
[378184337,1754772638244,-500.0,0.00020098,2]
[378184339,1754772638253,-500.0,0.00020098,2]
[378184341,1754772638262,-500.0,0.00020098,2]
[378184343,1754772638272,-500.0,0.00020098,2]
[378184345,1754772638281,-500.0,0.00020098,2]
[378184347,1754772638291,-500.0,0.00020098,2]
[378184349,1754772638300,-500.0,0.00020098,2]
[378184351,1754772638309,-500.0,0.00020098,2]
[378184353,1754772638319,-500.0,0.00020098,2]
[378184355,1754772638328,-500.0,0.00020098,2]
[378184357,1754772638336,-500.0,0.00020098,2]
[378184359,1754772638345,-500.0,0.00020098,2]
[378184361,1754772638355,-500.0,0.00020098,2]
[378184363,1754772638364,-500.0,0.00020098,2]
[378184365,1754772638373,-500.0,0.00020098,2]
[378184367,1754772638382,-500.0,0.00020098,2]
[378184369,1754772638392,-500.0,0.00020098,2]
[378184371,1754772638401,-5199.43684444,0.00020114,2]
[378184373,1754772638410,-8042.09,0.00020122,2]
[378184375,1754772638419,-983.32,0.00020145,2]
[378184377,1754772638428,-414.03,0.00020145,2]
[378184379,1754772638438,-150.99,0.00020145,2]
[378184381,1754772638447,-150.99,0.00020145,2]
[378184383,1754772638456,-9999.99,0.00020145,2]
[378184385,1754772638466,-12981.51,0.00020145,2]
[378184387,1754772638475,-7542.84,0.00020145,2]
[378184389,1754772638484,-6060.47,0.00020145,2]
[378184391,1754772638495,-500.0,0.00020153,2]
[378184393,1754772638504,-5391.81600769,0.00020169,2]
[378184395,1754772638514,-600.0,0.00020178,2]
[378184396,1754772638523,-600.0,0.00020178,2]
[378184397,1754772638532,-325.17,0.00020178,2]
[378184398,1754772638542,-162.63,0.00020187,2]
[378184399,1754772638551,-400.0,0.000202,7]
[378184401,1754772638562,-500.0,0.00020208,2]
[378184403,1754772638572,-3417.70509695,0.00020224,2]
[378184405,1754772638586,-2173.60810302,0.00020224,2]
[378184407,1754772638596,-500.0,0.00020263,2]
[378184409,1754772638606,-174.52961318,0.0002027,2]
[378184411,1754772638615,-3981.35968984,0.00020279,2]
[378184424,1754772638731,-1816.83209853,0.00020279,2]
[378184427,1754772638741,-800.0,0.000203,7]
[378184429,1754772638750,-6012.72488454,0.00020334,2]
[378184431,1754772638759,-425.10687246,0.0002037,2]
[378184433,1754772638769,-500.0,0.00020388,2]
[378184435,1754772638778,-301.99999952,0.00020388,2]
[378184437,1754772638788,-440.02446609,0.00020388,2]
[378184439,1754772638797,-500.0,0.00020388,2]
[378184441,1754772638806,-6235.19570527,0.00020389,2]
[378184443,1754772638815,-1200.0,0.000204,7]
[378184444,1754772638824,-6465.89794637,0.00020444,2]
[378184447,1754772638833,-3183.40830018,0.00020499,2]
[378184449,1754772638843,-1600.0,0.000205,7]
[378184450,1754772638852,-888.0,0.000205,3]
[378184452,1754772638862,-2000.0,0.000206,7]
[378184454,1754772638871,-825.31,0.00020653,2]
[378184456,1754772638881,-1577.03,0.000207,2]
[378184458,1754772638890,-400.0,0.000207,7]
[378184460,1754772638899,-150.0,0.00020732,2]
[378184462,1754772638909,-806.84059368,0.00020747,2]
[378184464,1754772638918,-193.15940632,0.00020771,2]
[378184466,1754772638927,-300.0,0.00020772,2]
[378184468,1754772638936,-300.0,0.0002079,2]
[378184471,1754772638946,-500.0,0.0002079,4]
[378184472,1754772638955,-500.0,0.0002079,2]
[378184475,1754772638964,-400.0,0.000208,7]
[378184477,1754772638974,-1000.0,0.00020815,2]
[378184479,1754772638983,-153.0,0.00020838,2]
[378184481,1754772638992,-153.0,0.00020838,2]
[378184483,1754772639001,-150.0,0.00020846,2]
[378184485,1754772639013,-150.0,0.00020848,2]
[378184487,1754772639023,-189.16001364,0.00020859,2]
[378184489,1754772639032,-235.29351331,0.00020889,2]
[378184505,1754772639179,-443.13092382,0.0001972,3]
[378184507,1754772639190,-444.86907618,0.0001972,3]
[378184509,1754772639200,-1623.73784812,0.00020889,2]
[378184511,1754772639209,-154.05,0.0002089,2]
[378184513,1754772639218,-150.0,0.00020893,2]
[378184515,1754772639229,-2580.76134927,0.00020896,2]
[378184517,1754772639238,-181.30208901,0.00020896,2]
[378184519,1754772639247,-2580.76134921,0.00020896,2]
[378184521,1754772639257,-2580.76134921,0.00020897,2]
[378184523,1754772639266,-2580.76134921,0.00020897,2]
[378184524,1754772639276,-2580.76134921,0.00020898,2]
[378184526,1754772639285,-181.302089,0.00020898,2]
[378184529,1754772639294,-2580.76134921,0.00020898,2]
[378184530,1754772639304,-2580.76134921,0.00020899,2]
[378184533,1754772639313,-500.0,0.00020899,2]
[378184534,1754772639323,-500.0,0.00020899,2]
[378184536,1754772639332,-500.0,0.00020899,2]
[378184539,1754772639341,-385.91,0.00020899,2]
[378184541,1754772639351,-500.0,0.00020899,2]
[378184542,1754772639360,-2580.76134921,0.00020899,2]
[378184545,1754772639369,-2580.76134921,0.000209,2]
[378184546,1754772639378,-5000.0,0.000209,2]
[378184549,1754772639388,-48194.6092,0.000209,2]
[378184551,1754772639397,-1000.0,0.000209,2]
[378184553,1754772639406,-4110.0502,0.000209,2]
[378184555,1754772639415,-4000.7333,0.000209,2]
[378184556,1754772639424,-157.90958272,0.000209,2]
[378184559,1754772639433,-1859.03136143,0.000209,2]
[378184561,1754772639443,-2580.76134921,0.000209,2]
[378184562,1754772639452,-400.0,0.000209,7]
[378184564,1754772639461,-189.16001363,0.000209,2]
[378184566,1754772639470,-181.302089,0.000209,2]
[378184568,1754772639480,-351.65539426,0.000209,2]
[378184570,1754772639490,-150.0,0.00020909,2]
[378184572,1754772639499,-300.0,0.00020924,2]
[378184574,1754772639508,-150.0,0.00020925,2]
[378184576,1754772639518,-150.0,0.00020935,2]
[378184579,1754772639528,-2272.409,0.00020938,2]
[378184581,1754772639538,-162.118,0.00020938,2]
[378184583,1754772639548,-241.66939483,0.00020939,2]
[378184585,1754772639558,-300.0,0.00020941,2]
[378184587,1754772639567,-2156.81541087,0.00020941,2]
[378184589,1754772639577,-2156.81541087,0.00020946,2]
[378184591,1754772639586,-223.51345227,0.0002095,2]
[378184593,1754772639596,-2625.23166074,0.00020955,2]
[378184595,1754772639605,-266.24455817,0.00020957,2]
[378184596,1754772639614,-241.66939483,0.00020958,2]
[378184597,1754772639624,-6220.0,0.00020959,2]
[378184616,1754772639912,-13397.0,0.00020959,2]
[378184618,1754772639922,-1331.0,0.00020959,2]
[378184620,1754772639932,-2625.23166074,0.0002096,2]
[378184622,1754772639941,-2156.81541087,0.00020963,2]
[378184624,1754772639951,-661.68322809,0.00020963,2]
[378184626,1754772639960,-2625.23166074,0.00020963,2]
[378184628,1754772639969,-2156.81541087,0.00020964,2]
[378184631,1754772639978,-661.68322809,0.00020967,2]
[378184634,1754772639987,-223.51345227,0.00020971,2]
[378184636,1754772639997,-500.0,0.00020973,2]
[378184637,1754772640006,-500.0,0.00020973,2]
[378184639,1754772640016,-505.13495878,0.00020973,2]
[378184641,1754772640028,-500.0,0.00020973,2]
[378184643,1754772640040,-500.0,0.00020973,2]
[378184645,1754772640050,-488.9653843,0.00020973,2]
[378184647,1754772640059,-500.0,0.00020973,2]
[378184649,1754772640069,-2156.81541087,0.00020973,2]
[378184651,1754772640079,-241.66939483,0.00020974,2]
[378184653,1754772640088,-661.68322809,0.00020975,2]
[378184655,1754772640098,-266.24455817,0.00020976,2]
[378184657,1754772640108,-223.51345227,0.0002098,2]
[378184660,1754772640119,-150.0,0.0002098,2]
[378184662,1754772640129,-150.0,0.0002098,2]
[378184664,1754772640139,-150.0,0.0002098,2]
[378184666,1754772640148,-200.0,0.0002098,2]
[378184668,1754772640157,-150.0,0.0002098,2]
[378184670,1754772640166,-250.0,0.0002098,2]
[378184672,1754772640175,-150.0,0.0002098,2]
[378184673,1754772640186,-150.0,0.0002098,2]
[378184675,1754772640196,-661.68322809,0.0002098,2]
[378184678,1754772640205,-223.51345227,0.00020982,2]
[378184679,1754772640214,-266.24455817,0.00020983,2]
[378184682,1754772640223,-266.24455817,0.00020986,2]
[378184683,1754772640233,-300.0,0.00020986,2]
[378184685,1754772640242,-500.0,0.00020986,4]
[378184687,1754772640251,-223.51345227,0.00020987,2]
[378184690,1754772640261,-2625.23166074,0.00020987,2]
[378184691,1754772640271,-241.66939483,0.00020988,2]
[378184694,1754772640280,-1253.0,0.00020988,2]
[378184696,1754772640290,-956.0,0.00020988,2]
[378184697,1754772640299,-1252.361,0.00020988,2]
[378184699,1754772640309,-810.0,0.00020988,2]
[378184701,1754772640318,-1295.0,0.00020988,2]
[378184703,1754772640327,-2026.0,0.00020988,2]
[378184705,1754772640337,-959.0,0.00020988,2]
[378184707,1754772640346,-565.0,0.00020988,2]
[378184709,1754772640355,-598.0,0.00020988,2]
[378184711,1754772640365,-1171.0,0.00020988,2]
[378184713,1754772640374,-893.0,0.00020988,2]
[378184715,1754772640383,-1653.0,0.00020988,2]
[378184717,1754772640392,-716.0,0.00020988,2]
[378184719,1754772640401,-6079.0,0.00020988,2]
[378184721,1754772640411,-4143.0,0.00020988,2]
[378184723,1754772640420,-661.68322809,0.00020989,2]
[378184725,1754772640429,-241.66939483,0.00020989,2]
[378184727,1754772640439,-161.57266031,0.0002099,2]
[378184729,1754772640448,-161.57266031,0.0002099,2]
[378184731,1754772640457,-2625.23166074,0.0002099,2]
[378184733,1754772640466,-1220.8614126,0.00020995,2]
[378184735,1754772640476,-86417.2094662,0.00020995,2]
[378184737,1754772640485,-8920.52638663,0.00020996,2]
[378184739,1754772640495,-266.24455817,0.00020997,2]
[378184741,1754772640504,-666.0,0.00020999,2]
[378184743,1754772640514,-300.0,0.00020999,2]
[378184745,1754772640523,-1000.0,0.00020999,2]
[378184747,1754772640532,-1000.0,0.00020999,2]
[378184749,1754772640542,-1000.0,0.00020999,2]
[378184751,1754772640551,-1000.0,0.00020999,2]
[378184753,1754772640560,-1000.0,0.00020999,2]
[378184755,1754772640569,-1000.0,0.00020999,2]
[378184757,1754772640579,-225.00634573,0.00020999,2]
[378184759,1754772640588,-370.85338703,0.00020999,2]
[378184761,1754772640598,-247.96881559,0.00020999,2]
[378184763,1754772640607,-454.37402422,0.00021,2]
[378184765,1754772640616,-5951.86758549,0.00021,2]
[378184767,1754772640625,-339619.50843336,0.00021,2]
[378184770,1754772640642,-38756.4032515,0.00021,2]
[378184772,1754772640653,-477.75744038,0.00021,2]
[378184774,1754772640664,-269.51442101,0.00021,2]
[378184777,1754772640686,-894.894001,0.00021,2]
[378184780,1754772640697,-78920.78966519,0.00021,2]
[378184782,1754772640708,-855.21320353,0.00021,2]
[378184784,1754772640719,-10164.21672727,0.00021,2]
[378184788,1754772640747,-6220.17193452,0.00021,2]
[378184790,1754772640758,-7460.4147142,0.00021,2]
[378184793,1754772640781,-988.74135706,0.00021,2]
[378184796,1754772640796,-1152.70866489,0.00021,2]
[378184799,1754772640812,-1453.19346545,0.00021,2]
[378184801,1754772640824,-1228.45531551,0.00021,2]
[378184810,1754772641336,-888.0,0.00020779,3]
[378184811,1754772641347,-2310.88,0.00020988,2]
[378184812,1754772641359,-1195.22065453,0.00020988,2]
[378184813,1754772641383,-17943.89934547,0.00020988,2]
[378184814,1754772641392,-6022.84465453,0.00021,2]
[378184815,1754772641417,-1901.44999997,0.00021,2]
[378184816,1754772641442,-858.10328115,0.00021,2]
[378184817,1754772641454,-438.12,0.00021,2]
[378184818,1754772641594,-2143.97264611,0.00021,2]
[378184819,1754772641696,-693274.71303195,0.00021,2]
[378184820,1754772641706,-37711.43341587,0.00021,2]
[378184821,1754772641719,-12849.31041897,0.00021,2]
[378184822,1754772643131,-86067.09163151,0.00021,2]
[378184823,1754772643142,-2178.24740845,0.00021,2]
[378184824,1754772643154,-861.59970783,0.00021,2]
[378184825,1754772643294,-17388.89791603,0.00021,2]
[378184826,1754772643352,-3320.207988,0.00021,2]
[378184827,1754772643368,-2081.06435108,0.00021,2]
[378184828,1754772643407,-2073007.69553397,0.00021,2]
[378185075,1754772645876,519.0,0.00018161,2]
[378185115,1754772646208,-2093.95264113,0.00021,2]
[378185117,1754772646219,-990.60776806,0.00021,2]
[378185194,1754772646960,-888.0,0.00020999,3]
[378185196,1754772646972,-7056.0,0.00021,2]
[378185198,1754772646983,-2943.27821585,0.00021,2]
[378185201,1754772646994,-2108.8000001,0.00021,2]
[378185361,1754772648638,35688.3987132,0.0002,10]
[378186176,1754772675410,510.0,0.00018161,2]
[378186182,1754772880171,170.0,0.00019918,7]
[378186184,1754772924865,151.0,0.0002141,120]
[378186233,1754773749369,182.63,0.00013699,2]
[378186234,1754773756489,517.0,0.00017965,2]
[378186235,1754773815479,512.0,0.00017965,2]
[378186236,1754773822053,202.28466,0.0002,10]
[378186237,1754773822301,202.28466,0.0002,10]
[378186238,1754773822569,202.28466,0.0002,10]
[378186239,1754773822802,202.28466,0.0002,10]
[378186240,1754773823032,202.28469,0.0002,10]
[378186253,1754773832497,-180.07288731,0.00018787,2]